bitfinex/quotes_BTCUSD_20230103
["timestamp","ask_amount","ask_price","bid_price","bid_amount"]
[1672742883320,0.6473935,16762.0,16761.0,3.78040829]
[1672742884374,1.09499301,16762.0,16761.0,3.78040829]
[1672742884645,0.6473935,16762.0,16761.0,3.78040829]
[1672742884894,1.09499301,16762.0,16761.0,3.78040829]
[1672742885136,0.82627133,16762.0,16761.0,3.78040829]
[1672742885394,0.82627133,16762.0,16761.0,3.08040829]
[1672742886407,0.82627133,16762.0,16761.0,3.78040829]
[1672742887920,0.82627133,16762.0,16761.0,4.39495329]
[1672742888176,0.82627133,16762.0,16761.0,4.39489268]
[1672742890016,0.64740656,16762.0,16761.0,4.39489268]
[1672742890265,1.09500607,16762.0,16761.0,4.39489268]
[1672742890772,0.64740656,16762.0,16761.0,4.39489268]
[1672742891453,0.64740656,16762.0,16761.0,3.78034768]
[1672742891454,1.09501953,16762.0,16761.0,3.78034768]
[1672742891710,0.82627133,16762.0,16761.0,3.78034768]
[1672742892178,0.82627133,16762.0,16761.0,4.39489268]
[1672742892427,1.0950164,16762.0,16761.0,3.69489268]
[1672742892701,0.82627133,16762.0,16761.0,3.08034768]
[1672742893430,0.64741271,16762.0,16761.0,3.78034768]
[1672742893701,1.09501222,16762.0,16761.0,3.78034768]
[1672742893959,0.82627133,16762.0,16761.0,3.78034768]
[1672742895243,1.09500264,16762.0,16761.0,3.78034768]
[1672742895734,0.64740313,16762.0,16761.0,3.78034768]
[1672742896269,0.64740313,16762.0,16761.0,4.39489268]
[1672742899532,0.64740313,16762.0,16761.0,3.69489268]
[1672742899793,0.64740313,16762.0,16761.0,3.08034768]
[1672742900555,1.09500264,16762.0,16761.0,3.78034768]
[1672742900810,0.64740313,16762.0,16761.0,3.78034768]
[1672742904357,0.64740313,16762.0,16761.0,4.39489268]
[1672742906625,0.64740313,16762.0,16761.0,3.69489268]
[1672742906880,0.64740313,16762.0,16761.0,3.08034768]
[1672742908183,0.64740313,16762.0,16761.0,3.78034768]
[1672742908980,1.09500264,16762.0,16761.0,3.78034768]
[1672742909453,0.64740313,16762.0,16761.0,3.78034768]
[1672742911788,0.64740313,16762.0,16761.0,4.39489268]
[1672742913792,1.09500264,16762.0,16761.0,4.39489268]
[1672742914039,0.64740313,16762.0,16761.0,3.69489268]
[1672742914287,1.09505656,16762.0,16761.0,3.08034768]
[1672742914534,0.82627133,16762.0,16761.0,3.78034768]
[1672742914787,1.09505502,16762.0,16761.0,4.39489268]
[1672742915038,0.64745551,16762.0,16761.0,4.39489268]
[1672742915543,0.82627133,16762.0,16761.0,3.78034768]
[1672742916271,0.82627133,16762.0,16761.0,3.78022971]
[1672742917336,0.82616121,16762.0,16761.0,3.78022971]
[1672742919120,0.82616121,16762.0,16761.0,3.05409449]
[1672742919366,1.07909493,16762.0,16761.0,3.05409449]
[1672742920163,1.4374232,16762.0,16761.0,3.05409449]
[1672742920426,1.07909493,16762.0,16761.0,3.05409449]
[1672742921191,0.63149542,16762.0,16761.0,3.05409449]
[1672742921922,1.07931513,16762.0,16761.0,3.05409449]
[1672742922195,1.07931513,16762.0,16761.0,3.78022971]
[1672742922459,0.46809013,16762.0,16761.0,3.78022971]
[1672742926319,0.46809013,16762.0,16761.0,3.08022971]
[1672742926597,1.07931513,16762.0,16761.0,3.08022971]
[1672742927590,1.07931513,16762.0,16761.0,3.78022971]
[1672742927892,0.46809013,16762.0,16761.0,3.78022971]
[1672742928373,0.46809013,16762.0,16761.0,3.18360671]
[1672742932153,1.07931513,16762.0,16761.0,3.18360671]
[1672742933454,1.07931513,16762.0,16761.0,2.48360671]
[1672742933455,0.82625989,16762.0,16761.0,2.48360671]
[1672742933718,1.43748489,16762.0,16761.0,2.48360671]
[1672742934482,1.43748489,16762.0,16761.0,3.18360671]
[1672742934974,0.82625989,16762.0,16761.0,3.18360671]
[1672742938369,0.82625989,16762.0,16761.0,3.18348772]
[1672742939140,0.82625989,16762.0,16761.0,3.17154788]
[1672742940418,0.82625989,16762.0,16761.0,2.47154788]
[1672742940645,0.82625989,16762.0,16761.0,3.17154788]
[1672742946544,0.82625989,16762.0,16761.0,2.47154788]
[1672742947307,1.0948931,16762.0,16761.0,2.47154788]
[1672742947545,1.0948931,16762.0,16761.0,3.67154788]
[1672742948383,0.82625989,16762.0,16761.0,3.67154788]
[1672742948596,0.82625989,16762.0,16761.0,3.17154788]
[1672742949344,1.09490609,16762.0,16761.0,3.17154788]
[1672742949618,0.82625989,16762.0,16761.0,3.17154788]
[1672742950104,0.82625989,16762.0,16761.0,3.17421679]
[1672742952329,1.09491988,16762.0,16761.0,3.17421679]
[1672742952585,1.09492116,16762.0,16761.0,3.17421679]
[1672742952834,0.82625989,16762.0,16761.0,3.17421679]
[1672742953050,0.64710107,16762.0,16761.0,3.17421679]
[1672742955551,0.64710107,16762.0,16761.0,2.47421679]
[1672742956382,1.09492078,16762.0,16761.0,2.47168133]
[1672742956655,1.09492078,16762.0,16761.0,3.17154788]
[1672742956908,1.09492483,16762.0,16761.0,3.17154788]
[1672742957296,1.09492483,16762.0,16761.0,3.76817088]
[1672742957551,1.09492483,16762.0,16761.0,3.788635]
[1672742957804,0.82625989,16762.0,16761.0,3.17409]
[1672742958563,1.09493755,16762.0,16761.0,3.17409]
[1672742959045,0.82625989,16762.0,16761.0,3.17409]
[1672742959815,1.09493392,16762.0,16761.0,3.17409]
[1672742960037,0.64711421,16762.0,16761.0,3.17409]
[1672742960264,0.64703369,16762.0,16761.0,3.17409]
[1672742962739,0.64703369,16762.0,16761.0,2.47409]
[1672742963481,1.0948534,16762.0,16761.0,2.47409]
[1672742963689,1.0948534,16762.0,16761.0,3.17409]
[1672742963949,0.64703369,16762.0,16761.0,3.17409]
[1672742964212,1.0948534,16762.0,16761.0,3.17409]
[1672742964458,1.0948534,16762.0,16761.0,3.770713]
[1672742964936,0.64703369,16762.0,16761.0,3.770713]
[1672742965442,1.0948534,16762.0,16761.0,3.770713]
[1672742965684,0.82617937,16762.0,16761.0,3.770713]
[1672742966183,1.0948456,16762.0,16761.0,3.770713]
[1672742966715,1.09484843,16762.0,16761.0,3.770713]
[1672742966971,1.09484916,16762.0,16761.0,3.770713]
[1672742968250,0.82617937,16762.0,16761.0,3.770713]
[1672742968493,1.09486713,16762.0,16761.0,3.770713]
[1672742969758,0.82617937,16762.0,16761.0,3.070713]
[1672742970262,0.82617937,16762.0,16761.0,3.06817088]
[1672742970786,0.82617937,16762.0,16761.0,3.76817088]
[1672742971470,0.82617937,16762.0,16761.0,3.76829799]
[1672742973519,0.82617937,16762.0,16761.0,3.76817088]
[1672742975246,0.82617937,16762.0,16761.0,3.770713]
[1672742977966,0.82617937,16762.0,16761.0,3.76817088]
[1672742978472,0.82617937,16762.0,16761.0,3.76829799]
[1672742978748,0.46800961,16762.0,16761.0,3.76829799]
[1672742979026,1.07923461,16762.0,16761.0,3.76829799]
[1672742979250,1.07923461,16762.0,16761.0,3.76817088]
[1672742980069,1.07923461,16762.0,16761.0,3.76829799]
[1672742980531,1.07923461,16762.0,16761.0,3.76817088]
[1672742981200,1.07923461,16762.0,16761.0,3.76829799]
[1672742981446,1.07923461,16762.0,16761.0,3.76817088]
[1672742982182,1.07923461,16762.0,16761.0,3.770713]
[1672742984322,1.07923461,16762.0,16761.0,3.17397346]
[1672742987052,1.07923461,16762.0,16761.0,2.47143134]
[1672742987999,1.07923461,16762.0,16761.0,3.17143134]
[1672742988679,1.07923461,16762.0,16761.0,3.17155845]
[1672742988888,0.46800961,16762.0,16761.0,3.17143134]
[1672742989580,0.46800961,16762.0,16761.0,3.17155845]
[1672742990082,0.46800961,16762.0,16761.0,3.17143134]
[1672742990738,0.46800961,16762.0,16761.0,3.17397346]
[1672742990987,0.46800961,16762.0,16761.0,3.17143134]
[1672742991719,0.46800961,16762.0,16761.0,3.17397346]
[1672742992498,0.46800961,16762.0,16761.0,3.17143134]
[1672742992744,0.46800961,16762.0,16761.0,3.17397346]
[1672742994026,0.46800961,16762.0,16761.0,2.47397346]
[1672742994746,0.46800961,16762.0,16761.0,2.47143134]
[1672742995000,1.07923461,16762.0,16761.0,3.17143134]
[1672742995230,0.46800961,16762.0,16761.0,3.17143134]
[1672742996162,0.46800961,16762.0,16761.0,3.17155845]
[1672742996917,0.46800961,16762.0,16761.0,3.17143134]
[1672742997183,0.46800961,16762.0,16761.0,3.17155845]
[1672742997684,0.46800961,16762.0,16761.0,3.17143134]
[1672742998187,0.46800961,16762.0,16761.0,3.17155845]
[1672742998439,0.46800961,16762.0,16761.0,3.17143134]
[1672742999246,0.46800961,16762.0,16761.0,3.17385271]
[1672742999600,0.46800961,16762.0,16761.0,3.17143134]
[1672743000852,0.46800961,16762.0,16761.0,2.47143134]
[1672743001118,1.07923461,16762.0,16761.0,2.47143134]
[1672743001371,1.07923461,16762.0,16761.0,2.47385271]
[1672743001871,0.46800961,16762.0,16761.0,2.47143134]
[1672743002137,0.46800961,16762.0,16761.0,3.17143134]
[1672743002385,0.46800961,16762.0,16761.0,3.17167316]
[1672743002639,0.46800961,16762.0,16761.0,3.17143134]
[1672743003424,0.46800961,16762.0,16761.0,3.17167316]
[1672743003657,0.46800961,16762.0,16761.0,3.17143134]
[1672743004644,0.46800961,16762.0,16761.0,3.17135861]
[1672743005537,0.46800961,16762.0,16761.0,3.17367099]
[1672743007936,0.46800961,16762.0,16761.0,2.47135861]
[1672743008436,0.0201899,16762.0,16761.0,2.47367099]
[1672743008683,0.46815665,16762.0,16761.0,2.47367099]
[1672743008934,1.07938165,16762.0,16761.0,3.17367099]
[1672743009177,0.46815665,16762.0,16761.0,3.17367099]
[1672743015052,0.46815665,16762.0,16761.0,2.47367099]
[1672743015316,0.6314149,16762.0,16761.0,2.47367099]
[1672743015563,1.07944814,16762.0,16761.0,2.47367099]
[1672743015803,0.6314149,16762.0,16761.0,2.47367099]
[1672743016051,0.6314149,16762.0,16761.0,3.17367099]
[1672743016293,0.0201899,16762.0,16761.0,3.17367099]
[1672743018318,0.46824557,16762.0,16761.0,3.17367099]
[1672743018562,0.0201899,16762.0,16761.0,3.17367099]
[1672743019439,0.46827734,16762.0,16761.0,3.17367099]
[1672743019714,0.46827593,16762.0,16761.0,3.17367099]
[1672743020233,0.0201899,16762.0,16761.0,3.17367099]
[1672743020466,0.46827179,16762.0,16761.0,3.17367099]
[1672743021672,0.46827179,16762.0,16761.0,3.78821599]
[1672743021962,0.46827179,16762.0,16761.0,3.08821599]
[1672743022457,0.82669845,16762.0,16761.0,3.78821599]
[1672743022692,0.82669845,16762.0,16761.0,3.17367099]
[1672743023423,0.46827179,16762.0,16761.0,2.57704799]
[1672743023690,0.82669891,16762.0,16761.0,2.57704799]
[1672743023936,0.46827179,16762.0,16761.0,2.57704799]
[1672743024191,0.46827179,16762.0,16761.0,2.57473561]
[1672743024460,0.46827179,16762.0,16761.0,2.57485123]
[1672743024976,0.46827179,16762.0,16761.0,2.57473561]
[1672743025533,0.46827179,16762.0,16761.0,2.57693815]
[1672743026047,0.46827179,16762.0,16761.0,2.57473561]
[1672743027648,0.46827179,16762.0,16761.0,2.57693815]
[1672743028159,0.46827179,16762.0,16761.0,2.57473561]
[1672743028427,0.46827179,16762.0,16761.0,1.87473561]
[1672743028678,1.07949679,16762.0,16761.0,1.87495558]
[1672743028921,1.07949679,16762.0,16761.0,2.57473561]
[1672743029226,1.07949679,16762.0,16761.0,2.57462234]
[1672743029448,0.46827179,16762.0,16761.0,2.57462234]
[1672743029960,0.46827179,16762.0,16761.0,2.57484231]
[1672743032345,0.46827179,16762.0,16761.0,2.57462234]
[1672743032645,0.46827179,16762.0,16761.0,2.57672575]
[1672743033180,0.4806416,16762.0,16761.0,2.57672575]
[1672743034238,0.4806416,16762.0,16761.0,2.75492575]
[1672743034761,0.4806416,16762.0,16761.0,2.05492575]
[1672743035773,0.4806416,16762.0,16761.0,2.75492575]
[1672743041832,0.4806416,16762.0,16761.0,2.05492575]
[1672743042598,0.4806416,16762.0,16761.0,2.05313648]
[1672743042846,0.4806416,16762.0,16761.0,2.75313648]
[1672743046879,0.4806416,16762.0,16761.0,3.36768148]
[1672743047407,0.4806416,16762.0,16761.0,2.75313648]
[1672743047654,0.4806416,16762.0,16761.0,2.75483629]
[1672743047903,0.4806416,16762.0,16761.0,2.75282234]
[1672743048932,0.4806416,16762.0,16761.0,2.05282234]
[1672743049764,0.4806416,16762.0,16761.0,2.75483629]
[1672743050031,0.4806416,16762.0,16761.0,2.75282234]
[1672743050281,0.03255971,16762.0,16761.0,2.75282234]
[1672743051713,0.03255971,16762.0,16761.0,2.75503287]
[1672743052406,0.03255971,16762.0,16761.0,2.75272049]
[1672743052966,0.03255971,16762.0,16761.0,2.75503287]
[1672743053453,0.03255971,16762.0,16761.0,2.75272049]
[1672743054165,0.03255971,16762.0,16761.0,2.75503287]
[1672743054450,0.03255971,16762.0,16761.0,2.75272049]
[1672743054951,0.03255971,16762.0,16761.0,2.75159197]
[1672743055220,0.58675926,16762.0,16761.0,2.75159197]
[1672743056492,0.58675926,16762.0,16761.0,2.75390435]
[1672743057271,0.01236982,16762.0,16761.0,2.75390435]
[1672743059267,0.01236982,16762.0,16761.0,2.75170759]
[1672743059534,0.01236982,16762.0,16761.0,2.75159197]
[1672743061490,0.01236982,16762.0,16761.0,2.05170759]
[1672743061738,0.01236982,16762.0,16761.0,2.05159197]
[1672743063805,0.69500708,16762.0,16761.0,0.89830857]
[1672743064059,1.23194752,16762.0,16761.0,0.139]
[1672743064348,1.84317252,16762.0,16761.0,0.139]
[1672743065094,1.23194752,16762.0,16761.0,0.139]
[1672743065337,1.84317252,16762.0,16761.0,0.139]
[1672743065856,1.84317252,16762.0,16760.0,2.03230116]
[1672743066100,1.23294752,16762.0,16761.0,0.14]
[1672743066353,1.84417252,16762.0,16761.0,0.14]
[1672743068098,2.44075952,16762.0,16761.0,0.14]
[1672743070295,1.82953452,16762.0,16761.0,0.14]
[1672743070546,2.44075952,16762.0,16761.0,0.14]
[1672743078208,2.44075952,16762.0,16761.0,0.13988611]
[1672743079642,1.90381908,16762.0,16761.0,0.13988611]
[1672743082957,2.44075952,16762.0,16761.0,0.13988611]
[1672743085955,1.90381908,16762.0,16761.0,0.13988611]
[1672743086458,2.44075952,16762.0,16761.0,0.13988611]
[1672743087169,2.44075952,16762.0,16761.0,0.13976921]
[1672743087669,1.90381908,16762.0,16761.0,0.13976921]
[1672743089402,2.44075952,16762.0,16761.0,0.13976921]
[1672743094140,2.46004071,16762.0,16761.0,0.13976921]
[1672743097934,1.86345371,16762.0,16761.0,0.13976921]
[1672743098909,1.25222871,16762.0,16761.0,0.13976921]
[1672743102036,1.86345371,16762.0,16761.0,0.13976921]
[1672743102360,1.25222871,16762.0,16761.0,0.13976921]
[1672743102532,1.84881571,16762.0,16761.0,0.13976921]
[1672743107607,1.84935867,16762.0,16761.0,0.13976921]
[1672743108451,1.31187527,16762.0,16761.0,0.13976921]
[1672743108741,1.84933856,16762.0,16761.0,0.13976921]
[1672743109682,1.31187527,16762.0,16761.0,0.13976921]
[1672743110191,1.8492835,16762.0,16761.0,0.13976921]
[1672743112451,1.31187527,16762.0,16761.0,0.13976921]
[1672743116608,1.90846227,16762.0,16761.0,0.13976921]
[1672743117347,3.43472573,16762.0,16761.0,0.13976921]
[1672743117640,2.83060297,16762.0,16761.0,0.13976921]
[1672743117867,2.51968727,16762.0,16761.0,0.13976921]
[1672743118107,1.31941103,16762.0,16761.0,0.13976921]
[1672743118358,2.51258503,16762.0,16761.0,0.13976921]
[1672743118611,2.51968727,16762.0,16761.0,0.13982329]
[1672743118864,2.51968727,16762.0,16761.0,0.1396962]
[1672743119406,1.90846227,16762.0,16761.0,0.1396962]
[1672743120183,1.87681127,16762.0,16761.0,0.1396962]
[1672743122220,1.90803142,16762.0,16761.0,0.1396962]
[1672743125992,1.90803142,16762.0,16761.0,0.13982329]
[1672743126239,1.90803142,16762.0,16761.0,0.1396962]
[1672743128227,2.51215418,16762.0,16761.0,0.1396962]
[1672743128747,1.90803142,16762.0,16761.0,0.1396962]
[1672743129541,2.51215418,16762.0,16761.0,0.1396962]
[1672743129797,1.90803142,16762.0,16761.0,0.1396962]
[1672743132377,2.51215418,16762.0,16761.0,0.1396962]
[1672743132619,1.90803142,16762.0,16761.0,0.1396962]
[1672743133826,2.51215418,16762.0,16761.0,0.1396962]
[1672743134988,1.90803142,16762.0,16761.0,0.13982329]
[1672743135237,1.90803142,16762.0,16761.0,0.1396962]
[1672743135508,1.90803142,16762.0,16761.0,0.13838948]
[1672743137446,2.51215418,16762.0,16761.0,0.13838948]
[1672743139199,3.12337918,16762.0,16761.0,0.13838948]
[1672743140735,2.51925642,16762.0,16761.0,0.13838948]
[1672743149418,2.51215418,16762.0,16761.0,0.13838948]
[1672743151043,3.12337918,16762.0,16761.0,0.13838948]
[1672743151301,2.51215418,16762.0,16761.0,0.13838948]
[1672743153058,3.12337918,16762.0,16761.0,0.13838948]
[1672743154785,3.12326794,16762.0,16761.0,0.13838948]
[1672743156245,3.12326794,16762.0,16761.0,0.06913098]
[1672743159375,3.55491193,16762.0,16761.0,0.06913098]
[1672743160384,4.15149893,16762.0,16761.0,0.06913098]
[1672743160628,3.54737617,16762.0,16761.0,0.06913098]
[1672743161118,4.15190235,16762.0,16761.0,0.06913098]
[1672743162433,3.54737617,16762.0,16761.0,0.06913098]
[1672743162672,4.15186834,16762.0,16761.0,0.06913098]
[1672743162931,3.72022435,16762.0,16761.0,0.06913098]
[1672743163950,3.11573218,16762.0,16761.0,0.06913098]
[1672743165180,3.72018672,16762.0,16761.0,0.06913098]
[1672743168969,3.11573218,16762.0,16761.0,0.06913098]
[1672743169216,2.50450718,16762.0,16761.0,0.06913098]
[1672743169728,3.10891447,16762.0,16761.0,0.06913098]
[1672743170223,3.10891447,16762.0,16761.0,0.06925807]
[1672743170722,3.10891447,16762.0,16761.0,0.06913098]
[1672743171219,3.10891447,16762.0,16761.0,0.06925807]
[1672743171731,3.10891447,16762.0,16761.0,0.06913098]
[1672743178250,3.10891447,16762.0,16761.0,0.06906706]
[1672743184705,3.10891447,16762.0,16761.0,0.06919415]
[1672743185197,3.10891447,16762.0,16761.0,0.06906706]
[1672743190716,3.10891447,16762.0,16761.0,0.06919415]
[1672743190966,3.10891447,16762.0,16761.0,0.06906706]
[1672743196438,2.51232747,16762.0,16761.0,0.06906706]
[1672743197992,1.90792018,16762.0,16761.0,0.06906706]
[1672743198246,2.51914518,16762.0,16761.0,0.06906706]
[1672743200464,2.51914518,16762.0,16761.0,0.06897816]
[1672743206647,3.12355247,16762.0,16761.0,0.06897816]
[1672743208180,3.72013947,16762.0,16761.0,0.06897816]
[1672743214701,3.4692857,16762.0,16761.0,0.06897816]
[1672743214950,4.14130708,16762.0,16761.0,0.06897816]
[1672743215451,3.53689979,16762.0,16761.0,0.06897816]
[1672743217312,3.10522754,16762.0,16761.0,0.06897816]
[1672743217569,3.11889734,16762.0,16761.0,0.06897816]
[1672743221766,3.11889734,16762.0,16761.0,0.06887254]
[1672743223494,3.7231864,16762.0,16761.0,0.06887254]
[1672743223736,3.11889734,16762.0,16761.0,0.06887254]
[1672743225250,3.7231423,16762.0,16761.0,0.06887254]
[1672743225519,3.11889734,16762.0,16761.0,0.06887254]
[1672743226031,3.72314133,16762.0,16761.0,0.06887254]
[1672743226532,3.11889734,16762.0,16761.0,0.06887254]
[1672743227007,3.72311065,16762.0,16761.0,0.06887254]
[1672743228201,4.02360963,16762.0,16761.0,0.06887254]
[1672743228464,3.9647311,16762.0,16761.0,0.06887254]
[1672743228711,3.24152664,16762.0,16761.0,0.06887254]
[1672743228958,3.41939632,16762.0,16761.0,0.06887254]
[1672743229466,4.02242431,16762.0,16760.0,0.119702]
[1672743229745,3.41119931,16762.0,16760.0,0.119702]
[1672743230006,1.71540109,16761.0,16760.0,0.119702]
[1672743230246,1.21540109,16761.0,16760.0,0.119702]
[1672743230508,3.00527009,16761.0,16760.0,0.119702]
[1672743231021,3.63656933,16761.0,16760.0,0.119702]
[1672743231533,3.63756422,16761.0,16760.0,0.125702]
[1672743231785,3.63656933,16761.0,16760.0,0.11958651]
[1672743232046,3.69056933,16761.0,16760.0,0.12558651]
[1672743237292,4.04016752,16761.0,16760.0,0.12558651]
[1672743238254,4.07165935,16761.0,16760.0,0.12558651]
[1672743242732,3.72206116,16761.0,16760.0,0.12558651]
[1672743246479,3.72206116,16761.0,16760.0,0.12496395]
[1672743250358,3.2097903,16761.0,16760.0,0.12496395]
[1672743250616,3.89814912,16761.0,16760.0,0.12496395]
[1672743250922,3.90124671,16761.0,16760.0,0.12496395]
[1672743251141,3.72394671,16761.0,16760.0,0.12496395]
[1672743251399,3.56595372,16761.0,16760.0,0.12496395]
[1672743252166,4.1021372,16761.0,16760.0,0.12496395]
[1672743252904,3.69597378,16761.0,16760.0,0.12496395]
[1672743255361,2.97276932,16761.0,16760.0,0.12496395]
[1672743261203,3.69286554,16761.0,16760.0,0.12496395]
[1672743261461,2.97276932,16761.0,16760.0,0.12496395]
[1672743261722,3.69286554,16761.0,16760.0,0.12496395]
[1672743262013,2.97276932,16761.0,16760.0,0.12496395]
[1672743273370,2.97276932,16761.0,16760.0,0.12485297]
[1672743274327,3.15668206,16761.0,16760.0,0.12485297]
[1672743275551,3.68693439,16761.0,16760.0,0.12485297]
[1672743275796,3.85000394,16761.0,16760.0,0.12485297]
[1672743276768,3.12990772,16761.0,16760.0,0.12485297]
[1672743277276,3.85000394,16761.0,16760.0,0.12485297]
[1672743277495,3.15668206,16761.0,16760.0,0.12485297]
[1672743277972,3.75557993,16761.0,16760.0,0.12485297]
[1672743280239,4.27886744,16761.0,16760.0,0.12485297]
[1672743281270,3.55877122,16761.0,16760.0,0.12485297]
[1672743282012,3.56553841,16761.0,16760.0,0.12485297]
[1672743282270,2.95987335,16761.0,16760.0,0.12485297]
[1672743282522,2.43658584,16761.0,16760.0,0.12485297]
[1672743282808,3.02822434,16761.0,16760.0,0.12485297]
[1672743284320,3.74832056,16761.0,16760.0,0.12485297]
[1672743284805,3.02822434,16761.0,16760.0,0.12485297]
[1672743293156,2.46699934,16761.0,16760.0,0.12485297]
[1672743294408,2.63605334,16761.0,16760.0,0.12485297]
[1672743295138,3.19727634,16761.0,16760.0,0.12485297]
[1672743297348,2.63605334,16761.0,16760.0,0.12485297]
[1672743303513,2.43605334,16761.0,16760.0,0.12485297]
[1672743309466,2.45400006,16761.0,16760.0,0.12485297]
[1672743311936,2.65400006,16761.0,16760.0,0.12485297]
[1672743317226,2.65400006,16761.0,16760.0,0.12473303]
[1672743319972,3.21522306,16761.0,16760.0,0.12473303]
[1672743324190,3.01522306,16761.0,16760.0,0.12473303]
[1672743325187,2.45400006,16761.0,16760.0,0.12473303]
[1672743325944,1.86236156,16761.0,16760.0,0.12473303]
[1672743326201,2.78215343,16761.0,16760.0,0.12473303]
[1672743326435,3.34337643,16761.0,16760.0,0.12473303]
[1672743326727,3.35788452,16761.0,16760.0,0.12473303]
[1672743334077,3.04337643,16761.0,16760.0,0.12473303]
[1672743338101,3.04337643,16761.0,16760.0,0.12467119]
[1672743338609,3.02542971,16761.0,16760.0,0.12467119]
[1672743339535,3.04337643,16761.0,16760.0,0.12467119]
[1672743345689,3.04337643,16761.0,16760.0,0.12400217]
[1672743346685,3.02542971,16761.0,16760.0,0.12400217]
[1672743347673,3.04337643,16761.0,16760.0,0.12400217]
[1672743348424,3.02542971,16761.0,16760.0,0.12400217]
[1672743348914,3.57272373,16761.0,16760.0,0.12400217]
[1672743349189,4.31078238,16761.0,16760.0,0.12400217]
[1672743349946,3.4300742,16761.0,16760.0,0.12400217]
[1672743350435,4.31078238,16761.0,16760.0,0.12400217]
[1672743350693,3.4300742,16761.0,16760.0,0.12400217]
[1672743350948,4.31078238,16761.0,16760.0,0.12400217]
[1672743356001,4.03661851,16761.0,16760.0,0.12400217]
[1672743356260,4.33484111,16761.0,16760.0,0.12400217]
[1672743357251,3.73661851,16761.0,16760.0,0.12400217]
[1672743357513,4.39219936,16761.0,16760.0,0.12400217]
[1672743361716,3.94192687,16761.0,16760.0,0.12400217]
[1672743366939,3.94192687,16761.0,16760.0,0.12393815]
[1672743367686,4.30315942,16761.0,16760.0,0.12393815]
[1672743369467,5.01959669,16761.0,16760.0,0.12393815]
[1672743369728,4.00278329,16761.0,16760.0,0.12393815]
[1672743369980,4.48233499,16761.0,16760.0,0.12393815]
[1672743371232,3.76589772,16761.0,16760.0,0.12393815]
[1672743371475,4.75403478,16761.0,16760.0,0.12393815]
[1672743372266,4.27437103,16761.0,16760.0,0.12393815]
[1672743373535,3.97437103,16761.0,16760.0,0.12393815]
[1672743377937,4.27437103,16761.0,16760.0,0.12393815]
[1672743378202,3.97437103,16761.0,16760.0,0.12393815]
[1672743379933,4.69118443,16761.0,16760.0,0.12393815]
[1672743380177,4.50494284,16761.0,16760.0,0.12393815]
[1672743381147,3.97437103,16761.0,16760.0,0.12393815]
[1672743383678,3.41314803,16761.0,16760.0,0.12393815]
[1672743388654,3.97437103,16761.0,16760.0,0.12393815]
[1672743389114,4.27437103,16761.0,16760.0,0.12393815]
[1672743389366,4.32099409,16761.0,16760.0,0.12393815]
[1672743389638,4.83276345,16761.0,16760.0,0.12393815]
[1672743389913,4.11595005,16761.0,16760.0,0.12393815]
[1672743390151,5.3756985,16761.0,16760.0,0.12393815]
[1672743390407,4.11595005,16761.0,16760.0,0.12393815]
[1672743390654,3.81595005,16761.0,16760.0,0.12393815]
[1672743390908,3.25472705,16761.0,16760.0,0.12393815]
[1672743391404,3.55472705,16761.0,16760.0,0.12393815]
[1672743391708,4.11595005,16761.0,16760.0,0.12393815]
[1672743392265,4.30304737,16761.0,16760.0,0.12393815]
[1672743392520,4.97863104,16761.0,16760.0,0.12393815]
[1672743393017,4.97863104,16761.0,16760.0,0.12385511]
[1672743393230,4.24904737,16761.0,16760.0,0.11785511]
[1672743393662,4.94514105,16761.0,16760.0,0.11785511]
[1672743394384,5.50110853,16761.0,16760.0,0.11785511]
[1672743394633,4.78429513,16761.0,16760.0,0.11785511]
[1672743394908,4.35832765,16761.0,16760.0,0.11985511]
[1672743396844,5.07514105,16761.0,16760.0,0.11985511]
[1672743397092,4.91191411,16761.0,16760.0,0.11985511]
[1672743398302,4.19510071,16761.0,16760.0,0.11985511]
[1672743399316,4.91191411,16761.0,16760.0,0.11985511]
[1672743399537,4.74774549,16761.0,16760.0,0.11985511]
[1672743400556,5.46455889,16761.0,16760.0,0.11985511]
[1672743402785,4.91191411,16761.0,16760.0,0.11985511]
[1672743403033,3.89510071,16761.0,16760.0,0.11985511]
[1672743403526,4.61191411,16761.0,16760.0,0.11985511]
[1672743403778,4.91191411,16761.0,16760.0,0.11985511]
[1672743405053,4.19510071,16761.0,16760.0,0.11985511]
[1672743405595,4.67606415,16761.0,16760.0,0.11985511]
[1672743406386,4.37606415,16761.0,16760.0,0.11985511]
[1672743407135,4.67606415,16761.0,16760.0,0.11985511]
[1672743408664,4.37606415,16761.0,16760.0,0.11985511]
[1672743408933,4.67606415,16761.0,16760.0,0.11985511]
[1672743411431,4.19510071,16761.0,16760.0,0.11985511]
[1672743411680,3.33387771,16761.0,16760.0,0.11985511]
[1672743413861,3.33387771,16761.0,16760.0,0.11973696]
[1672743414638,3.51782437,16761.0,16760.0,0.11973696]
[1672743414902,4.97536887,16761.0,16760.0,0.11973696]
[1672743415159,4.42255485,16761.0,16760.0,0.11973696]
[1672743415671,3.82623335,16761.0,16760.0,0.11973696]
[1672743415926,4.33976073,16761.0,16760.0,0.11973696]
[1672743416425,4.03976073,16761.0,16760.0,0.11973696]
[1672743416961,4.33976073,16761.0,16760.0,0.11973696]
[1672743417482,4.03976073,16761.0,16760.0,0.11973696]
[1672743421256,4.54304675,16761.0,16760.0,0.11973696]
[1672743423397,3.66233857,16761.0,16760.0,0.11973696]
[1672743423614,3.68028529,16761.0,16760.0,0.11973696]
[1672743423868,3.66233857,16761.0,16760.0,0.11973696]
[1672743424637,3.83923857,16761.0,16760.0,0.11973696]
[1672743425131,3.85718529,16761.0,16760.0,0.11973696]
[1672743426512,4.03538529,16761.0,16760.0,0.11973696]
[1672743426726,4.74902793,16761.0,16758.0,0.01177717]
[1672743426963,1.05852383,16759.0,16758.0,0.01177717]
[1672743427208,4.717376,16759.0,16758.0,0.01177717]
[1672743427460,5.03532272,16759.0,16758.0,0.01177717]
[1672743428174,5.17032272,16759.0,16758.0,0.01177717]
[1672743428435,5.03532272,16759.0,16758.0,0.01177717]
[1672743428682,5.4417968,16759.0,16758.0,0.01177717]
[1672743428929,6.04376019,16759.0,16758.0,0.01177717]
[1672743429181,6.04376019,16759.0,16758.0,0.25183719]
[1672743429182,4.88423295,16759.0,16758.0,0.25183719]
[1672743429436,3.70290912,16759.0,16758.0,0.01177717]
[1672743429937,3.6849624,16759.0,16758.0,0.01177717]
[1672743430713,3.72459132,16759.0,16758.0,0.01177717]
[1672743434121,4.23518284,16759.0,16758.0,0.01177717]
[1672743434385,3.72459132,16759.0,16758.0,0.01177717]
[1672743434902,4.02459132,16759.0,16758.0,0.01177717]
[1672743435145,4.73519379,16759.0,16758.0,0.01177717]
[1672743435678,4.04253804,16759.0,16758.0,0.01177717]
[1672743435922,4.37391451,16759.0,16758.0,0.01177717]
[1672743436670,4.04253804,16759.0,16758.0,0.01177717]
[1672743436910,3.74253804,16759.0,16758.0,0.01177717]
[1672743439703,3.72459132,16759.0,16758.0,0.01177717]
[1672743439954,4.02459132,16759.0,16758.0,0.01177717]
[1672743442275,5.63471503,16759.0,16758.0,0.01177717]
[1672743442529,5.52426414,16759.0,16758.0,0.01177717]
[1672743442794,5.63309122,16759.0,16758.0,0.01177717]